bitfinex-derivatives/quotes_BTCF0:USTF0_20241226
["timestamp","ask_amount","ask_price","bid_price","bid_amount"]
[1735171435239,0.3608,99755.0,99729.0,0.3608]
[1735171435240,0.01558154,99739.0,99729.0,0.3608]
[1735171435435,0.01558154,99739.0,99738.0,0.3608]
[1735171435634,0.3608,99755.0,99753.0,0.040132]
[1735171436944,0.3608,99755.0,99747.0,0.3608]
[1735171436945,0.00150421,99768.0,99754.0,0.3608]
[1735171437146,0.00150421,99768.0,99767.0,0.040127]
[1735171438839,0.00250421,99768.0,99767.0,0.040127]
[1735171439247,0.00250421,99768.0,99767.0,0.041127]
[1735171439448,0.00250421,99768.0,99767.0,0.001]
[1735171440648,0.00250421,99768.0,99767.0,0.041127]
[1735171441147,0.01326145,99798.0,99791.0,0.040117]
[1735171441946,0.040116,99795.0,99782.0,0.3608]
[1735171442252,0.01326145,99798.0,99782.0,0.3608]
[1735171442544,0.01326145,99798.0,99797.0,0.040115]
[1735171442849,0.001,99793.0,99791.0,0.3628]
[1735171443050,0.001,99793.0,99792.0,0.3608]
[1735171443441,0.00726949,99793.0,99792.0,0.3608]
[1735171444237,0.00626949,99793.0,99792.0,0.3608]
[1735171444446,0.00626949,99793.0,99792.0,0.001]
[1735171445246,0.04638649,99793.0,99792.0,0.001]
[1735171446355,0.040117,99793.0,99792.0,0.001]
[1735171448661,0.040117,99794.0,99792.0,0.001]
[1735171448955,0.01326145,99798.0,99782.0,0.3608]
[1735171449149,0.3608,99783.0,99773.0,0.3608]
[1735171449656,0.05567107,99775.0,99773.0,0.3608]
[1735171449850,0.01554707,99774.0,99770.0,0.3608]
[1735171450046,0.01554707,99773.0,99771.0,0.040125]
[1735171450452,0.01554707,99777.0,99774.0,0.040124]
[1735171450946,0.01554707,99779.0,99774.0,0.040124]
[1735171451359,0.01554707,99778.0,99774.0,0.040124]
[1735171451569,0.01554707,99779.0,99774.0,0.040124]
[1735171451751,0.3608,99793.0,99770.0,0.3608]
[1735171451752,0.01554707,99780.0,99770.0,0.3608]
[1735171452061,0.040125,99772.0,99770.0,0.3608]
[1735171452251,0.3608,99773.0,99746.0,0.59631128]
[1735171452454,0.3608,99764.0,99746.0,0.59631128]
[1735171452764,0.040131,99757.0,99746.0,0.63644628]
[1735171453054,0.3608,99764.0,99746.0,0.63644628]
[1735171453055,0.040132,99756.0,99746.0,0.63644628]
[1735171453262,0.3608,99764.0,99753.0,0.040132]
[1735171453560,0.01557088,99777.0,99758.0,0.3608]
[1735171453755,0.040125,99772.0,99766.0,0.3608]
[1735171453955,0.040126,99769.0,99766.0,0.3608]
[1735171454152,0.002,99778.0,99766.0,0.3608]
[1735171454353,0.040127,99767.0,99757.0,0.040131]
[1735171454653,0.3608,99777.0,99746.0,0.36230379]
[1735171454850,0.040134,99750.0,99746.0,0.36230379]
[1735171455055,0.3608,99766.0,99754.0,0.040132]
[1735171455056,0.040128,99765.0,99754.0,0.040132]
[1735171455256,0.040129,99763.0,99754.0,0.040132]
[1735171455460,0.3608,99766.0,99746.0,0.36230379]
[1735171455754,0.040133,99754.0,99746.0,0.36230379]
[1735171456066,0.040134,99750.0,99746.0,0.36330379]
[1735171456252,0.3608,99766.0,99746.0,0.36330379]
[1735171456552,0.040131,99756.0,99748.0,0.040135]
[1735171456754,0.040128,99764.0,99746.0,0.40743879]
[1735171456952,0.04013,99760.0,99748.0,0.040135]
[1735171457151,0.04013,99760.0,99751.0,0.040133]
[1735171457561,0.3608,99766.0,99746.0,0.40743879]
[1735171457753,0.040131,99758.0,99747.0,0.040135]
[1735171458150,0.3608,99766.0,99747.0,0.040135]
[1735171458456,0.040134,99751.0,99746.0,0.36730379]
[1735171458652,0.3608,99766.0,99746.0,0.36330379]
[1735171458956,0.040131,99759.0,99752.0,0.040133]
[1735171459159,0.040131,99757.0,99746.0,0.40243879]
[1735171459363,0.040134,99749.0,99746.0,0.00150379]
[1735171459561,0.3608,99766.0,99746.0,0.00150379]
[1735171459562,0.040135,99747.0,99746.0,0.00150379]
[1735171459860,0.040135,99747.0,99746.0,0.00650379]
[1735171460962,0.1964,99765.0,99746.0,0.00650379]
[1735171460963,0.3608,99769.0,99746.0,0.00650379]
[1735171461159,0.040132,99754.0,99753.0,0.3608]
[1735171461361,0.3608,99769.0,99753.0,0.3608]
[1735171461564,0.040129,99762.0,99756.0,0.040131]
[1735171463054,0.041129,99762.0,99756.0,0.040131]
[1735171463258,0.04013,99760.0,99753.0,0.3608]
[1735171463860,0.04013,99760.0,99753.0,0.400933]
[1735171464969,0.001,99760.0,99753.0,0.3608]
[1735171465163,0.001,99760.0,99759.0,0.04013]
[1735171466570,0.001,99760.0,99756.0,0.3608]
[1735171466571,0.11958987,99770.0,99756.0,0.3608]
[1735171466767,0.040125,99772.0,99768.0,0.3608]
[1735171466955,0.040126,99771.0,99768.0,0.3608]
[1735171467163,0.48038987,99780.0,99768.0,0.3608]
[1735171467866,0.11958987,99780.0,99768.0,0.3608]
[1735171468063,0.15971187,99779.0,99768.0,0.3608]
[1735171468263,0.040123,99778.0,99768.0,0.3608]
[1735171469365,0.041123,99778.0,99768.0,0.3608]
[1735171469864,0.041123,99778.0,99770.0,0.040126]
[1735171470464,0.001,99778.0,99776.0,0.040123]
[1735171471870,0.040123,99777.0,99769.0,0.040126]
[1735171472075,0.040125,99773.0,99768.0,0.3608]
[1735171472475,0.040125,99772.0,99768.0,0.3608]
[1735171473069,0.040126,99771.0,99768.0,0.3608]
[1735171473264,0.001,99778.0,99768.0,0.3608]
[1735171473459,0.040126,99770.0,99768.0,0.3608]
[1735171475378,0.040123,99777.0,99768.0,0.3608]
[1735171475675,0.040123,99777.0,99768.0,0.3618]
[1735171475972,0.040124,99776.0,99768.0,0.3618]
[1735171476179,0.11958987,99774.0,99769.0,0.040126]
[1735171476377,0.11958987,99774.0,99768.0,0.3628]
[1735171476567,0.11958987,99774.0,99772.0,0.040125]
[1735171476766,0.30673553,99783.0,99768.0,0.6608]
[1735171476966,0.10926283,99800.0,99799.0,0.040114]
[1735171477166,0.400902,99828.0,99813.0,0.040108]
[1735171477376,0.3608,99828.0,99816.0,0.3608]
[1735171477675,0.00626784,99824.0,99816.0,0.7216]
[1735171479081,0.20756434,99817.0,99816.0,0.7216]
[1735171479880,0.001,99817.0,99816.0,0.7216]
[1735171484482,0.040104,99825.0,99816.0,0.7216]
[1735171484675,0.040104,99825.0,99824.0,0.3608]
[1735171484875,0.21660875,99827.0,99824.0,0.3608]
[1735171485788,0.21660875,99827.0,99816.0,0.001]
[1735171486180,0.21660875,99827.0,99815.0,0.3608]
[1735171486181,0.0983,99826.0,99824.0,0.001]
[1735171486392,0.0983,99826.0,99815.0,0.3608]
[1735171486585,0.040107,99816.0,99815.0,0.3608]
[1735171486779,0.0983,99826.0,99807.0,0.3608]
[1735171486780,0.3608,99821.0,99807.0,0.3608]
[1735171486986,0.040109,99813.0,99807.0,0.3608]
[1735171488285,0.21660875,99812.0,99807.0,0.3608]
[1735171489485,0.21760875,99812.0,99807.0,0.3608]
[1735171489685,0.21760875,99812.0,99807.0,0.400911]
[1735171490487,0.21760875,99812.0,99811.0,0.040109]
[1735171490691,0.21760875,99812.0,99807.0,0.3608]
[1735171491391,0.21760875,99812.0,99810.0,0.04011]
[1735171491691,0.21760875,99812.0,99807.0,0.3608]
[1735171492078,0.21760875,99812.0,99810.0,0.04011]
[1735171492379,0.001,99812.0,99810.0,0.04011]
[1735171495178,0.002,99812.0,99810.0,0.04011]
[1735171495495,0.002,99812.0,99808.0,0.3608]
[1735171496181,0.002,99812.0,99810.0,0.04011]
[1735171496584,0.01069844,99823.0,99808.0,0.3608]
[1735171496787,0.040104,99824.0,99820.0,0.3608]
[1735171497182,0.21660875,99823.0,99820.0,0.3608]
[1735171497780,0.25671375,99823.0,99820.0,0.3608]
[1735171497980,0.040105,99821.0,99820.0,0.3608]
[1735171498778,0.21660875,99823.0,99820.0,0.3608]
[1735171499292,0.040105,99822.0,99820.0,0.3618]
[1735171500289,0.21760875,99823.0,99820.0,0.400906]
[1735171500490,0.001,99822.0,99820.0,0.401906]
[1735171501893,0.041105,99822.0,99820.0,0.001]
[1735171502084,0.001,99822.0,99820.0,0.001]
[1735171502288,0.001,99823.0,99820.0,0.001]
[1735171502688,0.001,99823.0,99808.0,0.3608]
[1735171502896,0.040109,99813.0,99808.0,0.3608]
[1735171503197,0.04011,99809.0,99808.0,0.3608]
[1735171503684,0.04011,99809.0,99808.0,0.14419125]
[1735171503888,0.04011,99809.0,99793.0,0.23400749]
[1735171503889,0.3608,99810.0,99793.0,0.23400749]
[1735171504089,0.040116,99794.0,99793.0,0.23400749]
[1735171504498,0.040116,99794.0,99777.0,0.3608]
[1735171504499,0.040117,99791.0,99790.0,0.23400749]
[1735171504796,0.400917,99791.0,99790.0,0.23400749]
[1735171505004,0.400917,99791.0,99790.0,0.07390749]
[1735171505801,0.403917,99791.0,99790.0,0.07390749]
[1735171506198,0.403917,99791.0,99790.0,0.040118]
[1735171506199,0.003,99791.0,99790.0,0.040118]
[1735171507899,0.09000179,99803.0,99802.0,0.040113]
[1735171508092,0.09000179,99803.0,99802.0,0.400913]
[1735171509003,0.0036,99815.0,99812.0,0.040109]
[1735171509196,0.0036,99816.0,99814.0,0.400908]
[1735171511798,0.0036,99816.0,99814.0,0.401908]
[1735171512002,0.0036,99816.0,99814.0,0.402908]
[1735171512199,0.0036,99816.0,99814.0,0.042108]
[1735171513195,0.0036,99821.0,99819.0,0.040106]
[1735171513890,0.0036,99821.0,99814.0,0.002]
[1735171513891,0.13010879,99817.0,99814.0,0.002]
[1735171514095,0.3608,99815.0,99814.0,0.002]
[1735171514294,0.400908,99815.0,99795.0,0.29304301]
[1735171514496,0.040114,99800.0,99795.0,0.29304301]
[1735171515296,0.05573591,99806.0,99799.0,0.040114]
[1735171515493,0.09000179,99801.0,99799.0,0.040114]
[1735171515697,0.09000179,99801.0,99794.0,0.00150298]
[1735171517014,0.09000179,99797.0,99794.0,0.00150298]
[1735171517206,0.09000179,99797.0,99795.0,0.040116]
[1735171518193,0.09000179,99798.0,99794.0,0.00150298]
[1735171518399,0.09000179,99798.0,99797.0,0.040115]
[1735171519713,0.001,99798.0,99797.0,0.040115]
[1735171520910,0.002,99798.0,99797.0,0.040115]
[1735171524615,0.042115,99798.0,99797.0,0.040115]
[1735171525314,0.002,99798.0,99794.0,0.00150298]
[1735171525510,0.002,99798.0,99785.0,0.29304301]
[1735171525715,0.040122,99781.0,99779.0,0.3608]
[1735171526708,0.040123,99777.0,99774.0,0.29741184]
[1735171527401,0.040124,99775.0,99774.0,0.29741184]
[1735171528104,0.3608,99779.0,99765.0,0.040128]
[1735171528105,0.040125,99773.0,99765.0,0.040128]
[1735171528505,0.040125,99773.0,99760.0,0.3608]
[1735171529123,0.040125,99773.0,99771.0,0.00407959]
[1735171530017,0.08988959,99774.0,99771.0,0.00407959]
[1735171530820,0.08988959,99774.0,99771.0,0.00607959]
[1735171531218,0.08988959,99774.0,99771.0,0.00407959]
[1735171531417,0.08988959,99774.0,99771.0,0.00607959]
[1735171531623,0.08988959,99774.0,99772.0,0.400925]
[1735171531921,0.08988959,99780.0,99776.0,0.040123]
[1735171532916,0.08988959,99780.0,99779.0,0.040122]
[1735171533223,0.08988959,99784.0,99783.0,0.040121]
[1735171534621,0.001,99784.0,99783.0,0.040121]
[1735171534817,0.002,99784.0,99783.0,0.040121]
[1735171536626,0.002,99784.0,99771.0,0.36087959]
[1735171536832,0.040123,99777.0,99771.0,7.959e-05]
[1735171537034,0.3608,99782.0,99771.0,7.959e-05]
[1735171537231,0.3608,99782.0,99776.0,0.040123]
[1735171537733,0.3608,99782.0,99771.0,7.959e-05]
[1735171537923,0.040121,99781.0,99771.0,0.00607959]
[1735171538537,0.040121,99781.0,99776.0,0.001]
[1735171538831,0.040123,99778.0,99776.0,0.001]
[1735171539022,0.040123,99778.0,99776.0,0.002]
[1735171540232,0.040123,99778.0,99776.0,0.001]
[1735171540639,0.040123,99777.0,99776.0,0.001]
[1735171541127,0.040121,99781.0,99776.0,0.002]
[1735171541440,0.040123,99777.0,99776.0,0.002]
[1735171541633,0.040123,99777.0,99776.0,0.001]
[1735171542033,0.040123,99777.0,99776.0,0.002]
[1735171542331,0.08988959,99783.0,99777.0,0.040123]
[1735171542533,0.08988959,99781.0,99777.0,0.040123]
[1735171542733,0.08988959,99781.0,99780.0,0.040122]
[1735171543738,0.08988959,99791.0,99783.0,0.04012]
[1735171544734,0.08988959,99791.0,99777.0,0.3608]
[1735171545033,0.04012,99785.0,99777.0,0.3608]
[1735171545536,0.04012,99785.0,99777.0,0.400923]
[1735171545929,0.04012,99785.0,99777.0,0.401923]
[1735171547743,0.040121,99781.0,99777.0,0.401923]
[1735171548925,0.040121,99781.0,99777.0,0.400923]
[1735171549127,0.040121,99781.0,99777.0,0.401923]
[1735171549645,0.08988959,99787.0,99777.0,0.3618]
[1735171549842,0.08988959,99787.0,99782.0,0.040121]
[1735171550345,0.08988959,99787.0,99785.0,0.04012]
[1735171551232,0.09088959,99787.0,99785.0,0.04012]
[1735171551433,0.09188959,99787.0,99785.0,0.04012]
[1735171551633,0.09288959,99787.0,99785.0,0.04012]
[1735171552242,0.003,99787.0,99785.0,0.04012]
[1735171553636,0.09288959,99787.0,99785.0,0.04012]
[1735171554344,0.09288959,99787.0,99778.0,0.17847973]
[1735171554545,0.09288959,99787.0,99778.0,0.21860173]
[1735171554945,0.08988959,99783.0,99779.0,0.040122]
[1735171555145,0.08988959,99783.0,99777.0,0.53927973]
[1735171555146,0.040121,99781.0,99777.0,0.54071973]
[1735171555348,0.040123,99778.0,99777.0,0.53927973]
[1735171556451,0.040123,99778.0,99777.0,0.3608]
[1735171557355,0.040123,99778.0,99777.0,0.3618]
[1735171558248,0.11979186,99779.0,99777.0,0.3618]
[1735171558933,0.040123,99778.0,99777.0,0.3618]
[1735171559450,0.175623,99778.0,99777.0,0.3618]
[1735171559948,0.175623,99778.0,99777.0,0.3608]
[1735171560145,0.175623,99778.0,99777.0,0.3618]
[1735171561236,0.1355,99778.0,99777.0,0.3618]
[1735171562138,0.134,99785.0,99777.0,0.3618]
[1735171562139,0.15000299,99785.0,99777.0,0.3618]
[1735171562936,0.51080299,99785.0,99777.0,0.3618]
[1735171563134,0.040122,99780.0,99777.0,0.3618]
[1735171563552,0.040122,99780.0,99777.0,0.3608]
[1735171563747,0.3608,99785.0,99777.0,0.3618]
[1735171563945,0.040122,99779.0,99777.0,0.3618]
[1735171565052,0.15000299,99783.0,99774.0,0.17907366]
[1735171565349,0.400924,99775.0,99774.0,0.17907366]
[1735171566153,0.040124,99774.0,99767.0,0.3608]
[1735171566848,0.040125,99772.0,99767.0,0.3608]
[1735171567244,0.040125,99772.0,99767.0,0.3658]
[1735171567453,0.1202072,99768.0,99767.0,0.3678]
[1735171569851,0.1202072,99768.0,99767.0,0.3608]
[1735171570055,0.1202072,99768.0,99767.0,0.3678]
[1735171570742,0.1202072,99768.0,99767.0,0.007]
[1735171571143,0.13032208,99768.0,99767.0,0.007]
[1735171571656,0.01011488,99768.0,99767.0,0.007]
[1735171571954,0.3,99768.0,99762.0,0.17907366]
[1735171572147,0.3608,99763.0,99762.0,0.17907366]
[1735171572655,0.040135,99748.0,99747.0,0.29776508]
[1735171572846,0.400935,99748.0,99747.0,0.29776508]
[1735171573047,0.040136,99744.0,99743.0,0.23894975]
[1735171573349,0.04014,99734.0,99733.0,0.29776508]
[1735171573550,0.040144,99725.0,99724.0,0.35302622]
[1735171573852,0.400944,99725.0,99724.0,0.35302622]
[1735171574655,0.400944,99725.0,99710.0,0.40095]
[1735171574656,0.040145,99722.0,99710.0,0.40095]
[1735171574861,0.07890729,99720.0,99710.0,0.40095]
[1735171575844,0.08981898,99713.0,99710.0,0.40095]
[1735171576251,0.08981898,99713.0,99710.0,0.40995]
[1735171577355,0.09081898,99713.0,99710.0,0.40995]
[1735171577661,0.001,99713.0,99710.0,0.40995]
[1735171578357,0.001,99713.0,99710.0,0.3698]
[1735171579859,0.01035803,99715.0,99710.0,0.3638]
[1735171580059,0.040147,99718.0,99710.0,0.3638]
[1735171580359,1.5,99780.0,99725.0,0.040144]
[1735171580360,0.17934794,99744.0,99725.0,0.040144]
[1735171580561,0.17934794,99744.0,99734.0,0.76174]
[1735171580964,0.17934794,99744.0,99734.0,0.7216]
[1735171581260,0.17934794,99748.0,99745.0,0.040136]
[1735171581664,0.17934794,99748.0,99746.0,0.040135]
[1735171582063,0.56736434,99766.0,99746.0,0.3]
[1735171582360,0.00150418,99768.0,99746.0,0.3]
[1735171582361,0.00150418,99768.0,99765.0,0.040128]
[1735171582764,0.00150418,99768.0,99767.0,0.040127]
[1735171583554,0.00350418,99768.0,99767.0,0.040127]
[1735171583769,0.00750418,99768.0,99767.0,0.040127]
[1735171584365,0.00350418,99768.0,99767.0,0.043127]
[1735171584955,0.00150418,99768.0,99767.0,0.003]
[1735171585155,0.00150418,99768.0,99767.0,0.004]
[1735171585855,0.00150418,99768.0,99767.0,0.003]
[1735171586055,0.00150418,99768.0,99767.0,0.002]
[1735171586256,0.00150418,99768.0,99767.0,0.003]
[1735171586452,0.00250418,99768.0,99767.0,0.001]
[1735171586654,0.001,99768.0,99767.0,0.401927]
[1735171587959,0.001,99768.0,99767.0,0.400927]
[1735171588968,0.040122,99781.0,99767.0,0.400927]
[1735171588969,0.040122,99781.0,99770.0,0.040126]
[1735171589563,0.040122,99781.0,99767.0,0.3608]
[1735171589763,0.040122,99781.0,99771.0,0.040125]
[1735171590164,0.041122,99781.0,99771.0,0.040125]
[1735171590669,0.040122,99781.0,99772.0,0.040125]
[1735171591173,0.041122,99781.0,99772.0,0.040125]
[1735171591973,0.001,99781.0,99774.0,0.040124]
[1735171592167,0.041122,99781.0,99767.0,0.3608]
[1735171592467,0.041122,99781.0,99768.0,0.040126]
[1735171592468,0.001,99781.0,99768.0,0.040126]
[1735171592668,0.040124,99776.0,99768.0,0.040126]
[1735171592875,0.040126,99769.0,99759.0,0.3608]
[1735171593075,0.3608,99773.0,99759.0,0.3608]
[1735171593268,0.040128,99765.0,99759.0,0.3608]
[1735171594071,0.3608,99773.0,99759.0,0.3608]
[1735171594377,0.001,99781.0,99780.0,0.040122]
[1735171594871,0.3644,99782.0,99780.0,0.040122]
[1735171595072,0.3608,99796.0,99795.0,0.040116]
[1735171595073,0.0036,99796.0,99795.0,0.040116]
[1735171595270,0.3608,99817.0,99807.0,0.040111]
[1735171595476,0.3608,99817.0,99800.0,0.07890729]
[1735171595665,0.3608,99817.0,99810.0,0.04011]
[1735171597074,0.3668,99817.0,99812.0,0.040109]
[1735171597373,0.3698,99817.0,99812.0,0.040109]
[1735171598173,0.3698,99817.0,99816.0,0.040107]
[1735171598475,0.009,99817.0,99816.0,0.040107]
[1735171599582,0.00626694,99839.0,99838.0,0.040098]
[1735171599773,0.30576525,99879.0,99838.0,0.400898]
[1735171599774,0.00150299,99852.0,99838.0,0.400898]
[1735171599969,0.01555127,99861.0,99860.0,0.04009]
[1735171600173,0.3608,99870.0,99860.0,0.04009]
[1735171600367,0.3608,99870.0,99861.0,0.040089]
[1735171600569,0.3608,99870.0,99852.0,0.040093]
[1735171600775,0.3608,99870.0,99854.0,0.040092]
[1735171601169,0.002,99861.0,99854.0,0.040092]
[1735171601881,0.006,99863.0,99851.0,0.3608]
[1735171602073,0.006,99863.0,99838.0,0.3608]
[1735171602074,0.3608,99858.0,99840.0,0.07890729]
[1735171602279,0.3608,99858.0,99847.0,0.040095]
[1735171602481,0.3608,99858.0,99848.0,0.040094]
[1735171602978,0.3608,99858.0,99849.0,0.040094]
[1735171603173,0.3608,99858.0,99854.0,0.001]
[1735171603676,0.3648,99858.0,99852.0,0.040092]
[1735171604477,0.3648,99858.0,99848.0,0.44106729]
[1735171604677,0.3608,99858.0,99856.0,0.040091]
[1735171604875,0.3648,99858.0,99856.0,0.040091]
[1735171605388,0.004,99858.0,99856.0,0.040091]
[1735171606977,0.040087,99867.0,99856.0,0.040091]
[1735171607182,0.004,99858.0,99856.0,0.040091]
[1735171607381,0.005,99858.0,99856.0,0.040091]
[1735171607981,0.041087,99867.0,99856.0,0.040091]
[1735171608179,0.048087,99867.0,99856.0,0.041091]
[1735171608573,0.041087,99867.0,99856.0,0.040091]
[1735171608877,0.005,99858.0,99856.0,0.040091]
[1735171609380,0.005,99858.0,99857.0,0.3608]
[1735171610185,0.01555127,99871.0,99857.0,0.3608]
[1735171610486,0.008,99867.0,99866.0,0.040087]
[1735171610876,0.001,99867.0,99866.0,0.040087]
[1735171611082,0.01555127,99872.0,99866.0,0.040087]
[1735171611384,0.007,99871.0,99866.0,0.040087]
[1735171611781,0.001,99867.0,99866.0,0.040087]
[1735171612089,0.008,99867.0,99866.0,0.041087]
[1735171612385,0.008,99867.0,99866.0,0.401887]
[1735171613187,0.02255127,99867.0,99866.0,0.401887]
[1735171613386,0.01555127,99867.0,99866.0,0.400887]
[1735171613575,0.00626488,99868.0,99866.0,0.041087]
[1735171613978,0.00626488,99867.0,99866.0,0.040087]
[1735171614177,0.01426488,99867.0,99866.0,0.041087]
[1735171614482,0.01426488,99867.0,99866.0,0.040087]
[1735171614689,0.00726488,99867.0,99866.0,0.041087]
[1735171614985,0.00626488,99867.0,99866.0,0.041087]
[1735171615280,0.01326488,99867.0,99866.0,0.041087]
[1735171615888,0.01326488,99867.0,99866.0,0.001]
[1735171616084,0.16006488,99867.0,99866.0,0.001]
[1735171616478,0.01426488,99867.0,99866.0,0.3618]
[1735171617279,0.3608,99887.0,99866.0,0.3618]
[1735171617489,4.148e-05,99890.0,99889.0,0.040078]
[1735171617684,4.148e-05,99890.0,99885.0,0.040079]
[1735171617988,4.148e-05,99890.0,99881.0,0.3608]
[1735171618693,4.148e-05,99890.0,99888.0,0.040078]
[1735171619483,0.3608,99906.0,99881.0,0.3608]
[1735171619688,0.3608,99906.0,99895.0,0.040076]
[1735171619988,0.125,99900.0,99895.0,0.040076]
[1735171620991,0.07890729,99920.0,99886.0,0.07890729]
[1735171620992,0.3608,99915.0,99899.0,0.040074]
[1735171621192,0.040068,99914.0,99900.0,0.040073]
[1735171621378,0.3608,99905.0,99893.0,0.3608]
[1735171621584,0.3608,99905.0,99893.0,0.040076]
[1735171621780,0.3608,99905.0,99882.0,0.040081]
[1735171621781,0.040077,99893.0,99882.0,0.040081]
[1735171622180,0.040077,99893.0,99883.0,0.04008]
[1735171622988,0.3608,99897.0,99883.0,0.04008]
[1735171623190,0.3608,99897.0,99881.0,0.3608]
[1735171623389,0.040079,99886.0,99871.0,0.3608]
[1735171623590,0.3608,99887.0,99870.0,0.07890729]
[1735171623591,0.040082,99879.0,99870.0,0.07890729]
[1735171623789,0.3608,99887.0,99870.0,0.07890729]
[1735171624087,0.040083,99878.0,99870.0,0.43970729]
[1735171624293,0.040083,99878.0,99870.0,0.47979229]
[1735171624488,0.040083,99878.0,99870.0,0.07890729]
[1735171624688,0.040083,99878.0,99873.0,0.040084]
[1735171625181,0.3608,99889.0,99873.0,0.040084]
[1735171625182,0.01553356,99875.0,99873.0,0.040084]
[1735171625389,0.040086,99869.0,99860.0,0.07890729]
[1735171625597,0.3608,99868.0,99850.0,0.3608]
[1735171625889,0.040087,99867.0,99858.0,0.11899729]
[1735171626081,0.040084,99875.0,99870.0,0.001]
[1735171626281,0.3608,99876.0,99870.0,0.001]
[1735171626489,0.3608,99876.0,99870.0,0.002]
[1735171626696,0.040085,99871.0,99870.0,0.001]
[1735171626894,0.040082,99879.0,99870.0,0.001]
[1735171627089,0.3608,99901.0,99874.0,0.3608]
[1735171627090,0.04008,99885.0,99874.0,0.3608]
[1735171627490,0.37108641,99889.0,99874.0,0.3608]
[1735171627491,0.040081,99882.0,99874.0,0.3608]
[1735171628705,0.040085,99872.0,99859.0,0.04009]
[1735171628901,0.040085,99872.0,99860.0,0.040089]
[1735171629106,0.040087,99868.0,99857.0,0.040091]
[1735171629506,0.040087,99868.0,99850.0,0.07890729]
[1735171629696,0.3608,99866.0,99860.0,0.040089]
[1735171630409,0.040087,99868.0,99860.0,0.040089]
[1735171630603,0.040087,99868.0,99850.0,0.08090729]
[1735171630799,0.040087,99868.0,99861.0,0.040089]
[1735171631905,0.040088,99865.0,99860.0,0.001]
[1735171632209,0.1367,99870.0,99860.0,0.001]
[1735171632413,0.040082,99879.0,99866.0,0.3608]
[1735171632709,0.14850384,99880.0,99866.0,0.3608]
[1735171632909,0.14850384,99880.0,99873.0,0.040084]
[1735171633211,0.14850384,99880.0,99860.0,0.07990729]
[1735171633212,0.3608,99875.0,99860.0,0.001]
[1735171633404,0.14850384,99880.0,99860.0,0.001]
[1735171633405,0.040085,99873.0,99860.0,0.001]
[1735171633606,0.3608,99876.0,99856.0,0.3608]
[1735171633902,0.3608,99876.0,99866.0,0.001]
[1735171634105,0.3608,99867.0,99866.0,0.001]
[1735171635914,0.3608,99868.0,99856.0,0.3638]
[1735171636310,0.3608,99868.0,99856.0,0.001]
[1735171636311,0.040091,99858.0,99856.0,0.001]
[1735171636710,0.040091,99856.0,99847.0,0.040095]
[1735171637406,0.3608,99868.0,99845.0,0.23735678]
[1735171637607,0.040095,99846.0,99845.0,0.23735678]
[1735171637806,0.040095,99846.0,99844.0,0.00150227]
[1735171638109,0.2867,99845.0,99844.0,0.00150227]
[1735171638313,0.3608,99857.0,99844.0,0.00150227]
[1735171638502,0.14850384,99875.0,99856.0,0.3618]
[1735171638708,0.14850384,99875.0,99864.0,0.3608]
[1735171639008,0.15850211,99880.0,99874.0,0.3608]
[1735171639208,0.2374094,99880.0,99874.0,0.3608]
[1735171639719,0.2374094,99880.0,99867.0,0.040087]
[1735171640013,0.15850211,99880.0,99864.0,0.001]
[1735171640220,0.15850211,99880.0,99870.0,0.040085]
[1735171640412,0.15850211,99880.0,99872.0,0.040085]
[1735171640712,0.15850211,99880.0,99864.0,0.001]
[1735171640917,0.15850211,99880.0,99876.0,0.040083]
[1735171641217,0.11984012,99882.0,99864.0,0.004]
[1735171641416,0.11984012,99882.0,99865.0,0.1377]
[1735171641717,0.11984012,99882.0,99880.0,0.040082]
[1735171642718,0.11984012,99886.0,99881.0,0.1455]
[1735171643102,0.11984012,99886.0,99885.0,0.04008]
[1735171644109,0.040077,99891.0,99885.0,0.04008]
[1735171644514,0.01560294,99893.0,99885.0,0.04008]
[1735171644712,0.040078,99889.0,99885.0,0.04008]
[1735171646111,0.040078,99889.0,99886.0,0.040079]
[1735171647020,0.040075,99896.0,99888.0,0.040078]
[1735171648712,0.00150236,99898.0,99891.0,0.040077]
[1735171648907,0.001,99896.0,99893.0,0.3608]
[1735171650018,0.001,99896.0,99891.0,0.040077]
[1735171650720,0.3608,99897.0,99891.0,0.040077]
[1735171651621,0.001,99896.0,99891.0,0.040077]
[1735171652215,0.04157736,99898.0,99891.0,0.040077]
[1735171652422,0.001,99897.0,99891.0,0.040077]
[1735171653724,0.16141748,99898.0,99891.0,0.040077]
[1735171653926,0.001,99896.0,99891.0,0.040077]
[1735171654522,0.12084012,99897.0,99891.0,0.040077]
[1735171654720,0.12084012,99897.0,99871.0,0.1455]
[1735171654721,0.040078,99889.0,99883.0,0.04008]
[1735171654922,0.1475,99888.0,99870.0,0.3608]
[1735171655130,0.1475,99888.0,99879.0,0.3608]
[1735171656124,0.040079,99886.0,99879.0,0.400882]
[1735171656326,0.1475,99888.0,99879.0,0.400882]
[1735171656327,0.04008,99884.0,99879.0,0.3608]
[1735171656629,0.027381,99883.0,99879.0,0.3608]
[1735171658329,0.027381,99883.0,99879.0,0.3618]
[1735171658832,0.027381,99883.0,99879.0,0.3628]
[1735171659121,0.11984012,99886.0,99885.0,0.04008]
[1735171659327,0.11984012,99886.0,99879.0,0.402882]
[1735171660124,0.400879,99888.0,99879.0,0.042082]
[1735171660125,0.3608,99888.0,99879.0,0.042082]
[1735171660319,0.040079,99886.0,99879.0,0.041082]
[1735171660521,0.040079,99886.0,99879.0,0.040082]
[1735171660828,0.12995932,99889.0,99887.0,0.040079]
[1735171661128,0.3608,99907.0,99870.0,0.43970729]
[1735171661129,0.14980015,99891.0,99888.0,0.3608]